bitfinex-derivatives/quotes_BNBF0:USTF0_20251225
["timestamp","ask_amount","ask_price","bid_price","bid_amount"]
[1766683093175,0.68145089,840.65,839.77,1.7729465]
[1766683093374,0.68145089,840.64,839.77,1.7729465]
[1766683093578,0.68145089,840.63,839.77,1.7729465]
[1766683093777,0.20701286,840.82,839.78,1.7729465]
[1766683093981,0.68146693,840.81,839.78,1.7729465]
[1766683094175,0.68146693,840.8,839.78,1.7729465]
[1766683094380,0.68146693,840.79,839.78,1.7729465]
[1766683094577,0.68146693,840.78,839.78,1.7729465]
[1766683094781,0.68146693,840.77,839.78,1.7729465]
[1766683094975,12.81627683,840.77,839.93,1.7729465]
[1766683095380,12.81627683,840.77,839.92,1.7729465]
[1766683096181,12.81627683,840.77,839.93,1.7729465]
[1766683096377,12.81627683,840.77,839.92,1.7729465]
[1766683097380,12.81627683,840.77,839.78,8.77730859]
[1766683097381,12.81627683,840.77,839.97,1.7729465]
[1766683098278,12.81627683,840.77,839.96,1.7729465]
[1766683098484,0.8852877,841.09,839.96,1.7729465]
[1766683098782,0.20696915,840.91,839.96,1.7729465]
[1766683098981,0.68164774,840.9,839.96,1.7729465]
[1766683099176,0.68164774,840.9,839.97,1.7729465]
[1766683099378,0.68164774,840.9,839.98,1.7729465]
[1766683100482,0.68164774,840.9,840.02,1.7729465]
[1766683102284,0.68164774,840.9,840.01,1.7729465]
[1766683103386,0.20696915,840.91,840.01,1.7729465]
[1766683104185,0.20696915,840.91,840.0,1.7729465]
[1766683106282,0.20696915,840.91,839.99,1.7729465]
[1766683108182,0.20696915,840.91,839.98,1.7729465]
[1766683112290,0.20696915,840.91,839.97,1.7729465]
[1766683118194,0.20696915,840.91,839.98,1.7729465]
[1766683118398,0.8852877,841.24,839.99,1.7729465]
[1766683118594,0.20694577,841.02,839.99,1.7729465]
[1766683118898,0.67819132,841.01,839.99,1.7729465]
[1766683119099,0.67819132,841.0,840.02,1.7729465]
[1766683119305,0.67819132,841.0,839.98,9.09393823]
[1766683119306,0.20694577,841.02,840.01,1.7729465]
[1766683119594,0.67807695,841.01,840.01,1.7729465]
[1766683119799,0.67807695,841.0,840.01,1.7729465]
[1766683120000,0.20694577,841.02,840.02,1.7729465]
[1766683120202,0.67808257,841.01,840.02,1.7729465]
[1766683120496,0.20694577,841.02,840.02,1.7729465]
[1766683120700,0.6780457,841.01,840.02,1.7729465]
[1766683120899,0.20694577,841.02,840.02,1.7729465]
[1766683121100,0.67804576,841.01,840.02,1.7729465]
[1766683121299,0.20694577,841.02,840.02,1.7729465]
[1766683121599,0.67801721,841.01,840.02,1.7729465]
[1766683121794,0.20694577,841.02,840.02,1.7729465]
[1766683122000,0.67801721,841.01,840.02,1.7729465]
[1766683122197,0.20694577,841.02,840.02,1.7729465]
[1766683122398,0.67799659,841.01,840.02,1.7729465]
[1766683122597,0.20694577,841.02,840.02,1.7729465]
[1766683122799,0.67799659,841.01,840.02,1.7729465]
[1766683123100,0.20694577,841.02,840.02,1.7729465]
[1766683123299,0.67798371,841.01,840.02,1.7729465]
[1766683123499,0.20694577,841.02,840.02,1.7729465]
[1766683123697,0.6779838,841.01,840.02,1.7729465]
[1766683123901,0.20694577,841.02,840.02,1.7729465]
[1766683124101,0.67798384,841.01,840.02,1.7729465]
[1766683124298,0.20694577,841.02,840.02,1.7729465]
[1766683124499,0.67797864,841.01,840.02,1.7729465]
[1766683124702,0.20694577,841.02,840.02,1.7729465]
[1766683124902,0.67797864,841.01,840.02,1.7729465]
[1766683125104,0.20694577,841.02,840.02,1.7729465]
[1766683125403,0.67796738,841.01,840.02,1.7729465]
[1766683125603,0.20694577,841.02,840.02,1.7729465]
[1766683125803,0.67796738,841.01,840.02,1.7729465]
[1766683126099,0.20694577,841.02,840.02,1.7729465]
[1766683126400,0.67797317,841.01,840.02,1.7729465]
[1766683126603,0.20694577,841.02,840.02,1.7729465]
[1766683126803,0.67797317,841.01,840.02,1.7729465]
[1766683127002,0.20694577,841.02,840.02,1.7729465]
[1766683127201,0.67797323,841.01,840.02,1.7729465]
[1766683127404,0.20694577,841.02,840.02,1.7729465]
[1766683127604,0.67798632,841.01,840.02,1.7729465]
[1766683127901,0.20694577,841.02,840.02,1.7729465]
[1766683128105,0.6779862,841.01,840.02,1.7729465]
[1766683128401,0.20694577,841.02,840.02,1.7729465]
[1766683128704,0.67794833,841.01,840.02,1.7729465]
[1766683128904,0.20694577,841.02,840.02,1.7729465]
[1766683129204,0.67794833,841.01,840.02,1.7729465]
[1766683129400,0.20694577,841.02,840.02,1.7729465]
[1766683129603,0.67765701,841.01,840.02,1.7729465]
[1766683129804,0.20694577,841.02,840.02,1.7729465]
[1766683130006,0.67765707,841.01,840.02,1.7729465]
[1766683130201,0.67769292,841.0,840.02,1.7729465]
[1766683130401,0.20694577,841.02,840.02,1.7729465]
[1766683130601,0.67769292,841.01,840.02,1.7729465]
[1766683130801,0.67769292,841.0,840.02,1.7729465]
[1766683131006,0.20694577,841.02,840.02,1.7729465]
[1766683131207,0.67769292,841.01,840.02,1.7729465]
[1766683131408,0.67769292,841.0,840.02,1.7729465]
[1766683131604,0.20694577,841.02,840.02,1.7729465]
[1766683131804,0.67749893,841.01,840.02,1.7729465]
[1766683132008,0.67749893,841.0,840.02,1.7729465]
[1766683132209,0.20694577,841.02,840.03,1.7729465]
[1766683132505,0.67744711,841.01,840.03,1.7729465]
[1766683132710,0.67744711,841.0,840.03,1.7729465]
[1766683132907,0.20694577,841.02,840.03,1.7729465]
[1766683133106,0.67733331,841.01,840.03,10.74977374]
[1766683133311,0.67733331,841.0,840.03,10.74977374]
[1766683133508,0.20694577,841.02,840.03,10.74977374]
[1766683133807,0.67737875,841.01,840.03,10.74977374]
[1766683134008,0.67737875,841.0,840.03,10.74977374]
[1766683134211,0.20694577,841.02,840.03,10.74977374]
[1766683134409,0.67728288,841.01,840.03,10.74977374]
[1766683134613,0.67728288,841.0,840.03,10.74977374]
[1766683134813,0.20694577,841.02,840.03,10.74977374]
[1766683135113,0.67728288,841.01,840.03,10.74977374]
[1766683135310,0.67728288,841.0,840.04,1.7729465]
[1766683135514,0.67728288,840.99,840.04,1.7729465]
[1766683135814,0.20694577,841.02,840.09,1.7729465]
[1766683136015,0.8852877,841.33,840.11,1.7729465]
[1766683136211,0.20694454,841.12,840.12,1.7729465]
[1766683136515,0.67749744,841.11,840.12,1.7729465]
[1766683137315,0.67749744,841.11,840.13,1.7729465]
[1766683138316,0.67749744,841.11,840.14,1.7729465]
[1766683139312,0.67749744,841.1,840.15,1.7729465]
[1766683139516,0.67749744,841.09,840.15,1.7729465]
[1766683139715,0.67749744,841.08,840.15,1.7729465]
[1766683140011,0.67749744,841.07,840.15,1.7729465]
[1766683140215,0.67749744,841.06,840.15,1.7729465]
[1766683140415,0.67749744,841.05,840.15,1.7729465]
[1766683140615,0.67749744,841.04,840.15,1.7729465]
[1766683140916,0.67749744,841.03,840.15,1.7729465]
[1766683141112,0.67749744,841.02,840.15,1.7729465]
[1766683141316,0.67749744,841.01,840.16,1.7729465]
[1766683141512,0.20694454,841.12,840.16,1.7729465]
[1766683141813,0.678419,841.11,840.16,10.85404384]
[1766683142115,0.678419,841.1,840.16,10.85404384]
[1766683142316,0.678419,841.09,840.16,10.85404384]
[1766683142514,0.678419,841.08,840.16,10.85404384]
[1766683142715,0.678419,841.07,840.16,10.85404384]
[1766683142916,0.678419,841.06,840.16,10.85404384]
[1766683143117,0.678419,841.05,840.16,10.85404384]
[1766683143316,0.678419,841.04,840.16,10.85404384]
[1766683143512,0.678419,841.03,840.16,10.85404384]
[1766683143813,0.678419,841.02,840.16,10.85404384]
[1766683144018,0.678419,841.01,840.16,10.85404384]
[1766683144213,0.20694454,841.12,840.16,10.85404384]
[1766683144518,0.67849346,841.11,840.16,10.85404384]
[1766683144712,0.67849346,841.1,840.16,10.85404384]
[1766683144914,0.67849346,841.09,840.16,10.85404384]
[1766683145116,0.67849346,841.08,840.16,10.85404384]
[1766683145312,0.67849346,841.07,840.16,10.85404384]
[1766683145518,0.67849346,841.06,840.16,1.7729465]
[1766683145718,0.67849346,841.05,840.16,1.7729465]
[1766683145916,0.67849346,841.04,840.16,1.7729465]
[1766683146118,0.67849346,841.03,840.16,1.7729465]
[1766683146314,0.67849346,841.02,840.16,1.7729465]
[1766683146518,0.67849346,841.01,840.16,1.7729465]
[1766683146815,0.20694454,841.12,840.16,1.7729465]
[1766683147016,0.67848035,841.11,840.16,1.7729465]
[1766683147318,0.67848035,841.1,840.16,1.7729465]
[1766683147519,0.67848035,841.09,840.16,1.7729465]
[1766683147719,0.67848035,841.08,840.16,1.7729465]
[1766683147921,0.67848035,841.07,840.16,1.7729465]
[1766683148117,0.67848035,841.06,840.16,1.7729465]
[1766683148320,0.67848035,841.05,840.16,1.7729465]
[1766683148619,0.67848035,841.04,840.16,1.7729465]
[1766683148818,0.67848035,841.03,840.16,1.7729465]
[1766683149020,0.67848035,841.02,840.16,1.7729465]
[1766683149221,0.67848035,841.01,840.16,1.7729465]
[1766683149422,0.20694454,841.12,840.16,1.7729465]
[1766683149717,0.67831599,841.11,840.16,1.7729465]
[1766683149918,0.67831599,841.1,840.16,1.7729465]
[1766683150117,0.67831599,841.09,840.16,1.7729465]
[1766683150318,0.67831599,841.08,840.16,1.7729465]
[1766683150522,0.67831599,841.07,840.16,1.7729465]
[1766683150721,0.67831599,841.06,840.16,1.7729465]
[1766683151022,0.67831599,841.05,840.16,1.7729465]
[1766683151317,0.67831599,841.04,840.16,1.7729465]
[1766683151518,0.67831599,841.03,840.16,1.7729465]
[1766683151716,0.67831599,841.02,840.16,1.7729465]
[1766683151920,0.67831599,841.01,840.16,1.7729465]
[1766683152219,0.20694454,841.12,840.16,1.7729465]
[1766683152420,0.67831617,841.11,840.16,1.7729465]
[1766683152619,0.67831617,841.1,840.16,1.7729465]
[1766683152819,0.67831617,841.09,840.16,1.7729465]
[1766683153018,0.67831617,841.08,840.16,1.7729465]
[1766683153220,0.67831617,841.07,840.16,1.7729465]
[1766683153420,0.67831617,841.06,840.16,1.7729465]
[1766683153617,0.67831617,841.05,840.16,1.7729465]
[1766683153821,0.67831617,841.04,840.16,1.7729465]
[1766683154118,0.67831617,841.03,840.16,1.7729465]
[1766683154321,0.67831617,841.02,840.16,1.7729465]
[1766683154521,0.67831617,841.01,840.16,1.7729465]
[1766683158327,0.20694454,841.12,840.16,1.7729465]
[1766683158622,0.67851895,841.11,840.16,1.7729465]
[1766683158922,0.67851895,841.1,840.16,1.7729465]
[1766683159125,0.67851895,841.09,840.16,1.7729465]
[1766683159323,0.67851895,841.08,840.17,1.7729465]
[1766683159526,0.67851895,841.07,840.17,1.7729465]
[1766683159726,0.67851895,841.06,840.17,1.7729465]
[1766683159926,0.67851895,841.05,840.17,1.7729465]
[1766683160227,0.67851895,841.04,840.17,1.7729465]
[1766683160427,0.67851895,841.03,840.17,1.7729465]
[1766683160724,0.67851895,841.02,840.17,1.7729465]
[1766683160927,0.67851895,841.01,840.17,1.7729465]
[1766683161129,0.67851895,841.0,840.17,1.7729465]
[1766683161330,0.20694454,841.12,840.17,1.7729465]
[1766683161625,0.67825236,841.11,840.17,1.7729465]
[1766683161831,0.67825236,841.1,840.17,1.7729465]
[1766683162129,0.67825236,841.09,840.17,1.7729465]
[1766683162328,0.67825236,841.08,840.17,1.7729465]
[1766683162530,0.67825236,841.07,840.17,1.7729465]
[1766683162727,0.20694454,841.12,840.17,1.7729465]
[1766683162728,0.67825236,841.06,840.17,1.7729465]
[1766683162929,0.67825236,841.05,840.17,1.7729465]
[1766683163127,0.67825236,841.04,840.17,1.7729465]
[1766683163332,0.67825236,841.03,840.18,1.7729465]
[1766683163631,0.67825236,841.02,840.18,1.7729465]
[1766683163831,0.20694454,841.12,840.18,1.7729465]
[1766683163832,0.67825236,841.01,840.18,10.68331698]
[1766683164032,0.67825236,841.0,840.18,10.68331698]
[1766683164329,0.67825236,840.99,840.18,10.68331698]
[1766683164529,12.71088998,841.03,840.18,10.68331698]
[1766683164732,0.67839413,841.02,840.18,10.68331698]
[1766683164932,0.67839413,841.01,840.18,10.68331698]
[1766683165132,0.67839413,841.0,840.18,10.68331698]
[1766683165333,0.67839413,840.99,840.18,10.68331698]
[1766683165527,12.71088998,841.03,840.18,10.68331698]
[1766683165732,0.67840632,841.02,840.18,10.68331698]
[1766683165934,0.67840632,841.01,840.18,10.68331698]
[1766683166134,0.67840632,841.0,840.18,10.68331698]
[1766683166334,0.67840632,840.99,840.18,10.68331698]
[1766683166533,12.71088998,841.03,840.18,10.68331698]
[1766683166731,0.67842056,841.02,840.18,10.68331698]
[1766683166936,0.67842056,841.01,840.18,10.68331698]
[1766683167236,0.67842056,841.0,840.18,1.7729465]
[1766683167535,0.67842056,840.99,840.18,1.7729465]
[1766683167731,0.20694454,841.12,840.18,1.7729465]
[1766683167934,0.67843673,841.11,840.18,1.7729465]
[1766683168132,0.67843673,841.1,840.18,1.7729465]
[1766683168335,0.67843673,841.09,840.18,1.7729465]
[1766683168535,0.67843673,841.08,840.18,1.7729465]
[1766683168735,0.67843673,841.07,840.18,1.7729465]
[1766683169035,0.67843673,841.06,840.18,1.7729465]
[1766683169331,0.67843673,841.05,840.18,1.7729465]
[1766683169532,0.67843673,841.04,840.18,1.7729465]
[1766683169837,0.67843673,841.03,840.18,1.7729465]
[1766683170135,0.67843673,841.02,840.18,1.7729465]
[1766683170335,0.67843673,841.01,840.18,1.7729465]
[1766683170532,0.67843673,841.0,840.18,1.7729465]
[1766683170732,0.67843673,840.99,840.18,1.7729465]
[1766683170932,0.20694454,841.12,840.18,1.7729465]
[1766683171132,0.67829982,841.11,840.18,1.7729465]
[1766683171336,0.20694454,841.12,840.19,1.7729465]
[1766683171337,0.67829982,841.1,840.19,1.7729465]
[1766683171532,0.67829982,841.09,840.19,1.7729465]
[1766683171736,0.67829982,841.08,840.19,1.7729465]
[1766683171935,0.67829982,841.07,840.19,1.7729465]
[1766683172136,0.67829982,841.06,840.19,1.7729465]
[1766683172337,0.67829982,841.05,840.19,1.7729465]
[1766683172633,0.67829982,841.04,840.19,1.7729465]
[1766683172836,0.67829982,841.03,840.19,1.7729465]
[1766683173136,13.64626646,841.02,840.19,1.7729465]
[1766683173338,0.67829982,841.01,840.19,1.7729465]
[1766683176235,0.67829982,841.01,840.2,1.7729465]
[1766683177335,0.67829982,841.0,840.2,1.7729465]
[1766683177541,0.67829982,840.99,840.2,1.7729465]
[1766683177735,0.67829982,840.98,840.2,1.7729465]
[1766683178034,0.67829982,840.97,840.2,1.7729465]
[1766683178234,0.20694454,841.12,840.2,1.7729465]
[1766683178436,0.67866361,841.11,840.2,1.7729465]
[1766683178735,0.67866361,841.1,840.2,1.7729465]
[1766683178934,0.67866361,841.09,840.2,1.7729465]
[1766683179136,0.67866361,841.08,840.2,1.7729465]
[1766683179336,0.67866361,841.07,840.21,1.7729465]
[1766683179536,0.67866361,841.06,840.21,1.7729465]
[1766683179839,0.67866361,841.05,840.21,1.7729465]
[1766683180034,0.67866361,841.04,840.21,1.7729465]
[1766683180235,0.67866361,841.03,840.22,1.7729465]
[1766683180439,0.67866361,841.02,840.22,1.7729465]
[1766683180639,0.67866361,841.01,840.22,1.7729465]
[1766683180936,0.67866361,841.0,840.22,1.7729465]
[1766683181136,0.67866361,840.99,840.22,1.7729465]
[1766683181335,0.67866361,840.98,840.22,1.7729465]
[1766683181540,0.67866361,840.97,840.22,1.7729465]
[1766683181840,0.67866361,840.96,840.22,1.7729465]
[1766683182040,0.67866361,840.95,840.22,1.7729465]
[1766683182342,0.20694454,841.12,840.22,1.7729465]
[1766683182541,0.67902202,841.11,840.22,1.7729465]
[1766683182735,0.67902202,841.1,840.22,1.7729465]
[1766683182939,0.67902202,841.09,840.22,1.7729465]
[1766683183137,0.67902202,841.08,840.22,1.7729465]
[1766683183541,0.20694454,841.12,840.22,1.7729465]
[1766683184341,0.67902233,841.11,840.22,1.7729465]
[1766683184637,0.20694454,841.12,840.22,1.7729465]
[1766683185042,0.67902233,841.11,840.22,1.7729465]
[1766683185236,0.67902233,841.1,840.22,1.7729465]
[1766683185641,0.20694454,841.12,840.22,1.7729465]
[1766683186143,0.20694454,841.12,839.91,55.63220564]
[1766683186643,0.67902231,841.11,839.91,55.63220564]
[1766683186843,0.67902231,841.1,840.22,1.7848977]
[1766683187042,0.67902231,841.09,840.22,1.7848977]
[1766683187241,0.67902231,841.08,840.22,1.7848977]
[1766683187439,0.67902231,841.07,840.22,1.7848977]
[1766683187643,0.67902231,841.06,840.22,1.7848977]
[1766683187842,0.67902231,841.05,840.22,1.7848977]
[1766683188043,0.67902231,841.04,840.22,1.7848977]
[1766683188339,0.67902231,841.03,840.22,1.7848977]
[1766683188540,0.67902231,841.02,840.22,1.7848977]
[1766683188837,0.67902231,841.01,840.22,1.7848977]
[1766683189042,0.67902231,841.0,840.22,1.7848977]
[1766683189244,0.67902231,840.99,840.22,1.7848977]
[1766683189544,0.67902231,840.98,840.22,1.7848977]
[1766683189744,0.67902231,840.97,840.22,1.7848977]
[1766683190039,13.11323087,841.05,840.22,1.7848977]
[1766683190040,0.67902231,840.96,840.22,1.7848977]
[1766683190242,0.67902231,840.95,840.22,1.7848977]
[1766683190443,13.11323087,841.05,840.22,1.7848977]
[1766683190643,0.67832939,841.04,840.22,1.7848977]
[1766683190940,0.67832939,841.03,840.22,1.7848977]
[1766683191143,0.67832939,841.02,840.22,1.7848977]
[1766683191345,0.67832939,841.01,840.22,1.7848977]
[1766683191644,0.67832939,841.0,840.22,1.7848977]
[1766683191846,0.67832939,840.99,840.22,1.7848977]
[1766683192047,0.67832939,840.98,840.22,1.7848977]
[1766683192243,0.67832939,840.97,840.22,1.7848977]
[1766683192541,0.67832939,840.96,840.22,1.7848977]
[1766683192746,0.67832939,840.95,840.22,1.7848977]
[1766683192944,0.20694454,841.12,840.22,1.7848977]
[1766683193143,0.67831776,841.11,840.22,1.7848977]
[1766683193348,0.67831776,841.1,840.22,1.7848977]
[1766683193549,0.67831776,841.09,840.22,1.7848977]
[1766683193849,0.67831776,841.08,840.22,1.7848977]
[1766683194052,0.67831776,841.07,840.22,1.7848977]
[1766683194248,0.67831776,841.06,840.22,1.7848977]
[1766683194449,0.67831776,841.05,840.22,1.7848977]
[1766683194748,0.67831776,841.04,840.22,1.7848977]
[1766683194946,0.67831776,841.03,840.22,1.7848977]
[1766683195145,0.67831776,841.02,840.22,1.7848977]
[1766683195349,0.67831776,841.01,840.21,1.7848977]
[1766683195649,0.67831776,841.0,840.21,1.7848977]
[1766683195845,0.67831776,840.99,840.21,1.7848977]
[1766683196045,13.38026854,840.98,840.21,1.7848977]
[1766683196247,0.67831776,840.97,840.21,1.7848977]
[1766683196447,0.67831776,840.96,840.21,1.7848977]
[1766683196647,0.67831776,840.95,840.21,1.7848977]
[1766683196847,12.70195078,840.98,840.21,1.7848977]
[1766683197148,0.67825613,840.97,840.21,1.7848977]
[1766683197349,0.67825613,840.96,840.21,1.7848977]
[1766683197545,0.67825613,840.95,840.21,1.7848977]
[1766683197747,12.70195078,840.98,840.21,1.7848977]
[1766683198046,0.67824478,840.97,840.21,1.7848977]
[1766683198250,0.67824478,840.96,840.21,1.7848977]
[1766683198448,0.67824478,840.95,840.21,1.7848977]
[1766683198648,12.70195078,840.98,840.21,1.7848977]
[1766683198847,0.67823562,840.97,840.21,1.7848977]
[1766683199048,0.67823562,840.96,840.21,1.7848977]
[1766683199252,0.67823562,840.95,840.21,1.7848977]
[1766683199448,12.70195078,840.98,840.21,1.7848977]
[1766683199648,0.67822804,840.97,840.21,1.7848977]
[1766683199848,0.67822804,840.96,840.21,1.7848977]
[1766683200052,0.67822804,840.95,840.21,1.7848977]
[1766683200251,0.20694454,841.12,840.21,1.7848977]
[1766683200452,0.67822709,841.11,840.21,1.7848977]
[1766683200652,0.67822709,841.1,840.21,1.7848977]
[1766683200850,0.67822709,841.09,840.21,1.7848977]
[1766683201050,0.67822709,841.08,840.21,1.7848977]
[1766683201256,0.67822709,841.07,840.21,1.7848977]
[1766683201453,0.67822709,841.06,840.21,1.7848977]
[1766683201657,0.67822709,841.05,840.21,1.7848977]
[1766683201855,0.67822709,841.04,840.21,1.7848977]
[1766683202054,0.67822709,841.03,840.21,1.7848977]
[1766683202259,0.67822709,841.02,840.21,1.7848977]
[1766683202463,0.67822709,841.01,840.21,1.7848977]
[1766683202658,0.67822709,841.0,840.21,1.7848977]
[1766683202862,0.67822709,840.99,840.21,1.7848977]
[1766683203163,0.67822709,840.98,840.21,1.7848977]
[1766683203358,0.67822709,840.97,840.21,1.7848977]
[1766683203565,0.67822709,840.96,840.21,1.7848977]
[1766683203762,0.67822709,840.95,840.21,1.7848977]
[1766683203961,0.20694454,841.12,840.21,1.7848977]
[1766683204259,0.67820947,841.11,840.21,1.7848977]
[1766683204459,0.67820947,841.1,840.21,1.7848977]
[1766683204657,0.67820947,841.09,840.21,1.7848977]
[1766683204959,0.67820947,841.08,840.21,1.7848977]
[1766683205158,0.67820947,841.07,840.21,1.7848977]
[1766683205461,0.67820947,841.06,840.21,1.7848977]
[1766683205660,0.67820947,841.05,840.21,1.7848977]
[1766683205863,0.20694454,841.12,840.21,1.7848977]
[1766683205864,0.67820947,841.04,840.21,1.7848977]
[1766683206159,0.67820947,841.03,840.21,1.7848977]
[1766683206363,0.67820947,841.02,840.21,1.7848977]
[1766683206565,0.67820947,841.01,840.21,1.7848977]
[1766683206763,0.67820947,841.0,840.21,1.7848977]
[1766683206964,0.67820947,840.99,840.21,1.7848977]
[1766683207160,0.67820947,840.98,840.21,1.7848977]
[1766683207361,13.82777492,840.97,840.21,1.7848977]
[1766683207565,0.67820947,840.96,840.21,1.7848977]
[1766683207760,0.67820947,840.95,840.21,1.7848977]
[1766683207961,13.14956545,840.97,840.21,1.7848977]
[1766683208164,0.6781945,840.96,840.21,1.7848977]
[1766683208365,0.6781945,840.95,840.21,1.7848977]
[1766683208661,13.14956545,840.97,840.21,1.7848977]
[1766683208861,0.67819189,840.96,840.21,1.7848977]
[1766683209064,0.67819189,840.95,840.21,1.7848977]
[1766683209261,13.14956545,840.97,840.21,1.7848977]
[1766683209463,0.67818962,840.96,840.21,1.7848977]
[1766683209766,0.67818962,840.95,840.21,1.7848977]
[1766683209962,13.14956545,840.97,840.21,1.7848977]
[1766683210163,0.67818962,840.96,840.21,1.7848977]
[1766683210363,0.67818962,840.95,840.21,1.7848977]
[1766683210565,13.14956545,840.97,840.21,1.7848977]
[1766683210762,0.6781877,840.96,840.21,1.7848977]
[1766683210964,0.6781877,840.95,840.21,1.7848977]
[1766683211166,0.20694454,841.12,840.21,1.7848977]
[1766683211363,0.67818705,841.11,840.23,1.7848977]
[1766683211566,0.67818705,841.1,840.26,1.7848977]
[1766683211761,0.67818705,841.09,840.26,1.7848977]
[1766683211966,0.67818705,841.08,840.26,1.7848977]
[1766683212163,0.67818705,841.07,840.26,1.7848977]
[1766683212364,0.67818705,841.06,840.25,1.7848977]
[1766683212565,0.67818705,841.05,840.25,1.7848977]
[1766683212764,0.67818705,841.04,840.25,1.7848977]
[1766683212963,0.67818705,841.03,840.25,1.7848977]
[1766683213165,0.67818705,841.02,840.25,1.7848977]
[1766683213468,0.20694454,841.12,840.3,1.7848977]
[1766683213671,0.6781248,841.11,840.3,1.7848977]
[1766683213866,0.6781248,841.1,840.3,1.7848977]
[1766683214065,0.6781248,841.09,840.3,1.7848977]
[1766683214264,0.6781248,841.08,840.29,1.7848977]
[1766683214468,0.6781248,841.07,840.29,1.7848977]
[1766683214668,0.20694454,841.12,840.29,1.7848977]
[1766683214870,0.67794872,841.11,840.29,1.7848977]
[1766683215167,0.67794872,841.1,840.29,1.7848977]
[1766683215367,0.67794872,841.09,840.28,1.7848977]
[1766683215565,0.67794872,841.08,840.28,1.7848977]
[1766683215865,0.67794872,841.07,840.28,1.7848977]
[1766683216068,0.20694454,841.12,840.28,1.7848977]
[1766683216269,0.67783063,841.11,840.28,1.7848977]
[1766683216470,0.67783063,841.1,840.28,1.7848977]
[1766683216670,0.67783063,841.09,840.28,1.7848977]
[1766683216866,0.67783063,841.08,840.28,1.7848977]
[1766683217071,0.88940232,841.35,840.28,1.7848977]
[1766683217366,0.20691316,841.21,840.28,1.7848977]
[1766683217570,0.6777379,841.2,840.28,1.7848977]
[1766683217772,0.6777379,841.19,840.28,1.7848977]
[1766683217970,0.6777379,841.18,840.28,1.7848977]
[1766683218168,0.6777379,841.17,840.28,1.7848977]
[1766683218367,0.6777379,841.16,840.29,1.7848977]
[1766683218573,0.6777379,841.15,840.29,1.7848977]
[1766683218871,0.6777379,841.14,840.29,1.7848977]
[1766683219171,12.98113518,841.21,840.44,1.18833421]
[1766683220774,0.20691316,841.21,840.44,1.18833421]
[1766683221274,0.20691316,841.21,840.43,1.18833421]
[1766683226280,0.20691316,841.21,840.42,1.18833421]
[1766683246402,0.20691316,841.21,840.43,1.18833421]
[1766683250307,0.20691316,841.21,840.44,1.18833421]
[1766683251005,0.20691316,841.21,840.44,10.17624829]
[1766683253310,0.20691316,841.21,840.45,1.18833421]
[1766683255304,0.20691316,841.21,840.46,1.18833421]
[1766683256305,0.20691316,841.21,840.47,1.18833421]
[1766683258309,0.20691316,841.21,840.48,1.18833421]
[1766683262407,0.20691316,841.21,840.49,1.18833421]
[1766683277623,0.20691316,841.21,840.08,55.01039291]
[1766683277624,0.20691316,841.21,840.57,1.18833421]
[1766683277826,0.20691316,841.21,840.61,1.18833421]
[1766683278325,0.20691316,841.21,840.59,1.18833421]
[1766683279427,0.20691316,841.21,840.58,1.18833421]
[1766683280226,0.20691316,841.21,840.57,9.95693605]
[1766683281524,0.20691316,841.21,840.57,1.18833421]
[1766683282427,0.20691316,841.21,840.56,1.18833421]
[1766683284227,0.20691316,841.21,840.55,1.18833421]
[1766683285429,0.88990405,841.51,840.55,1.18833421]
[1766683285730,0.20685658,841.33,840.55,1.18833421]
[1766683286028,13.22242446,841.33,840.55,1.18833421]
[1766683287429,13.22242446,841.33,840.39,1.7848977]
[1766683287430,13.22242446,841.33,840.54,1.18833421]
[1766683290027,0.20685658,841.33,840.54,1.18833421]
[1766683294332,0.20685658,841.33,840.53,1.18833421]
[1766683305241,0.20685658,841.33,840.54,1.18833421]
[1766683311344,0.20685658,841.33,840.55,1.18833421]
[1766683311845,0.20685658,841.33,840.55,10.14754337]
[1766683315253,0.20685658,841.33,840.56,1.18833421]
[1766683318449,0.20685658,841.33,840.57,1.18833421]
[1766683320355,0.20685658,841.33,840.58,1.18833421]
[1766683321455,0.20685658,841.33,840.59,1.18833421]
[1766683322255,0.20685658,841.33,840.59,8.75608198]
[1766683326052,0.20685658,841.33,840.56,1.18833421]
[1766683331261,0.20685658,841.33,840.55,1.18833421]
[1766683339361,0.68011665,841.32,840.55,1.18833421]
[1766683339668,0.68011665,841.31,840.39,1.7848977]
[1766683339962,0.68011665,841.3,840.39,1.7848977]
[1766683340166,0.68011665,841.29,840.39,1.7848977]
[1766683340462,0.68011665,841.28,840.39,1.7848977]
[1766683340659,0.68011665,841.27,840.39,1.7848977]
[1766683340863,0.68011665,841.26,840.39,1.7848977]
[1766683341161,0.68011665,841.25,840.39,1.7848977]
[1766683341362,0.68011665,841.24,840.39,1.7848977]
[1766683341566,0.68011665,841.23,840.39,1.7848977]
[1766683341764,0.68011665,841.22,840.39,1.7848977]
[1766683341969,0.68011665,841.21,840.39,1.7848977]
[1766683342165,12.74889782,841.32,840.39,1.7848977]
[1766683342166,0.68011665,841.2,840.39,1.7848977]
[1766683342367,0.68011665,841.19,840.39,1.7848977]
[1766683342571,0.68011665,841.18,840.39,1.7848977]
[1766683342768,0.68011665,841.17,840.39,1.7848977]
[1766683343072,0.68011665,841.16,840.39,1.7848977]
[1766683343271,0.68011665,841.15,840.39,1.7848977]